[Event "CCT Chessable Masters D-III 2024"]
[Site "Online"]
[Date "2024.02.02"]
[Round "2"]
[White "ViIIagra"]
[Black "youngKID"]
[Result "0-1"]
[ECO "D00"]
[WhiteElo "2603"]
[BlackElo "2579"]
[Annotator "ChessBase"]
[PlyCount "72"]
[EventDate "2024.01.12"]
[EventType "k.o."]
[EventCountry "NET"]
[SourceTitle "playchess.com"]
[Source "ChessBase"]
[SourceQuality "1"]
[TimeControl "600+2"]

1. d4 {[%emt 0:00:03]} Nf6 {[%emt 0:00:05]} 2. Bg5 {[%emt 0:00:02]} d5 {[%emt 0:00:10]} 3. Bxf6 {[%emt 0:00:19]} exf6 {[%emt 0:00:03]} 4. e3 {[%emt 0:00:05]} Bd6 {[%emt 0:00:01]} 5. c4 {[%emt 0:00:10]} dxc4 {[%emt 0:00:03]} 6. Bxc4 {[%emt 0:00:00]} O-O {[%emt 0:00:04]} 7. Nc3 {[%emt 0:00:04]} c6 {[%emt 0:00:18]} 8. Nge2 {[%emt 0:00:42]} Nd7 {[%emt 0:00:05]} 9. Qc2 {[%emt 0:00:50]} f5 {[%emt 0:00:45]} 10. Bd3 {[%emt 0:00:56]} g6 {[%emt 0:00:04]} 11. h4 {[%emt 0:00:04]} Nf6 {[%emt 0:00:06]} 12. h5 {[%emt 0:00:12]} Nxh5 {[%emt 0:00:59]} 13. O-O-O {[%emt 0:02:46]} Nf6 {[%emt 0:00:37]} 14. Kb1 {[%emt 0:00:18]} Qe7 {[%emt 0:01:20]} 15. g3 {[%emt 0:00:18]} a6 {[%emt 0:01:08]} 16. Nf4 {[%emt 0:00:20]} b5 {[%emt 0:00:19]} 17. e4 {[%emt 0:00:16]} b4 {[%emt 0:02:14]} 18. e5 {[%emt 0:00:04]} bxc3 {[%emt 0:00:01]} 19. Qxc3 {[%emt 0:00:30]} Bc7 {[%emt 0:02:04]} 20. Qxc6 {[%emt 0:00:59]} Rb8 {[%emt 0:00:02]} 21. exf6 {[%emt 0:00:10]} Qb4 {[%emt 0:00:06]} 22. b3 {[%emt 0:00:03]} Bxf4 {[%emt 0:00:05]} 23. Rxh7 {[%emt 0:00:48]} Kxh7 {[%emt 0:00:02]} 24. Qh1+ {[%emt 0:00:06]} Kg8 {[%emt 0:00:07]} 25. gxf4 {[%emt 0:00:03]} Qxd4 {[%emt 0:00:01]} 26. Qh4 {[%emt 0:00:05]} Rb6 {[%emt 0:00:01]} 27. Rh1 {[%emt 0:00:21]} Qxd3+ {[%emt 0:00:01]} 28. Kb2 {[%emt 0:00:03]} Qd4+ {[%emt 0:00:00]} 29. Kb1 {[%emt 0:00:00]} Qe4+ {[%emt 0:00:01]} 30. Kb2 {[%emt 0:00:02]} Qxh1 {[%emt 0:00:00]} 31. Qxh1 {[%emt 0:00:02]} Rxf6 {[%emt 0:00:01]} 32. Qd5 {[%emt 0:00:05]} Re6 {[%emt 0:00:01]} 33. a4 {[%emt 0:00:01]} Re2+ {[%emt 0:00:02]} 34. Kc3 {[%emt 0:00:02]} Rxf2 {[%emt 0:00:01]} 35. Qc6 {[%emt 0:00:02]} Rxf4 {[%emt 0:00:02]} 36. b4 {[%emt 0:00:01]} Re4 {[%emt 0:00:03]} 0-1

[Event "CCT Chessable Masters D-III 2024"]
[Site "Online"]
[Date "2024.02.02"]
[Round "2"]
[White "Indjic, Aleksandar"]
[Black "MashaPutina"]
[Result "0-1"]
[ECO "E29"]
[WhiteElo "2595"]
[BlackElo "2651"]
[Annotator "TA"]
[PlyCount "96"]
[EventDate "2024.01.12"]
[EventType "k.o."]
[EventCountry "NET"]
[SourceTitle "playchess.com"]
[Source "ChessBase"]
[SourceQuality "1"]
[TimeControl "600+2"]

{[%evp 19,96,22,13,-1,2,-12,-14,-102,-95,-129,-40,-41,-36,-41,-47,-47,0,0,8,0,0,0,0,-6,0,0,0,0,0,0,0,0,0,0,0,0,0,0,0,0,0,0,0,-8,-12,-33,-41,-63,-50,-39,0,-60,-39,-88,0,0,0,0,0,0,0,-529,-458,-490,-439,-510,-427,-29949,-12810,-2576,-2102,-29980,-29981,-29981,-29981,-29985,-29986,-29984,-29987]} 1. d4 {[%emt 0:00:02]} Nf6 {[%emt 0:00:03]} 2. c4 {[%emt 0:00:02]} e6 {[%emt 0:00:01]} 3. Nc3 {[%emt 0:00:01]} Bb4 {[%emt 0:00:02]} 4. e3 {[%emt 0:00:01]} O-O {[%emt 0:00:01]} 5. Bd3 {[%emt 0:00:00]} c5 {[%emt 0:00:02]} 6. a3 {[%emt 0:00:04]} Bxc3+ {[%emt 0:00:01]} 7. bxc3 {[%emt 0:00:00]} Nc6 {[%emt 0:00:02]} 8. Nf3 {[%emt 0:00:06][%cal Bg1f3,Bf3h4,Bh4f5][%mdl 32]} d6 {[%emt 0:00:05]} 9. e4 {[%emt 0:00:02]} e5 {[%emt 0:00:01]} 10. d5 {[%emt 0:00:05]} Ne7 {[%emt 0:00:01]} 11. Nh4 {[%emt 0:00:26]} Ng6 {[%emt 0:00:31]} 12. Nf5 {[%emt 0:00:02]} Nf4 {[%emt 0:00:09]} 13. Bxf4 {[%emt 0:00:13]} (13. O-O $11 {remains equal.}) 13... exf4 $17 {[%emt 0:00:02]} 14. Qf3 {[%emt 0:00:00] [#]} Bxf5 {[%emt 0:00:15]} (14... g6 $1 $17 {[%cal Rg6f5]} 15. Nh6+ Kg7 16. Qxf4 Nh5) 15. exf5 $15 {[%emt 0:00:02]} Qa5 {[%emt 0:01:17] Prevents a4.} 16. Kd2 {[%emt 0:00:02][%cal Oa3a4] [#]} b5 $1 {[%emt 0:00:05]} 17. Qxf4 {[%emt 0:00:01]} (17. cxb5 c4 18. Bc2 (18. Bxc4 $2 Rac8 $19) 18... Qxb5 $17) 17... bxc4 {[%emt 0:00:12]} (17... Rfe8 $15 {might be stronger.}) 18. Qxc4 $11 {[%emt 0:00:01]} Rfe8 {[%emt 0:00:55]} 19. Rhe1 {[%emt 0:00:27]} Rxe1 {[%emt 0:00:08]} 20. Rxe1 {[%emt 0:00:12]} Qxa3 {[%emt 0:00:04]} 21. g4 {[%emt 0:00:41]} h6 {[%emt 0:00:04]} (21... Nd7 {simplifies} 22. Bc2 Nb6 23. Qe4 Rf8) 22. h4 {[%emt 0:00:02]} Re8 {[%emt 0:00:58] Threatens to win with ...Qb2+.} (22... Qb2+ 23. Bc2 Nd7 24. Qe4 (24. Qb3 Qxb3 25. Bxb3 Kf8 $11)) 23. Rxe8+ {[%emt 0:00:10]} Nxe8 {[%emt 0:00:02][%mdl 4096] Endgame. KQB-KQN} 24. g5 {[%emt 0:00:13]} Qb2+ {[%emt 0:00:09]} 25. Bc2 {[%emt 0:00:21]} hxg5 {[%emt 0:00:03]} 26. hxg5 {[%emt 0:00:01]} Kf8 {[%emt 0:00:10]} 27. Qa4 {[%emt 0:00:30]} Qb7 {[%emt 0:00:10]} 28. Be4 {[%emt 0:00:16]} Ke7 {[%emt 0:00:02]} 29. Ke3 {[%emt 0:00:29]} Kd8 {[%emt 0:00:03]} 30. f4 {[%emt 0:00:14]} a6 {[%emt 0:00:07]} 31. Kf3 {[%emt 0:00:24]} Qb5 {[%emt 0:00:04]} 32. Qa1 {[%emt 0:00:07]} a5 {[%emt 0:00:02]} 33. Kg3 {[%emt 0:00:31]} c4 $1 {[%emt 0:00:13]} 34. Bf3 {[%emt 0:02:05]} Nc7 {[%emt 0:00:29][%cal Ob5c5]} 35. Qa3 {[%emt 0:00:49]} (35. Qe1 $11) 35... Qc5 {[%emt 0:00:04]} 36. Qb2 {[%emt 0:00:09]} (36. Qxc5 dxc5 37. Be2 a4 38. Bxc4 Ne8 $17) 36... a4 {[%emt 0:00:35]} (36... Nxd5 $6 37. Qb8+ Kd7 38. Bxd5 Qxd5 39. Qa7+ Kc8 40. Qa6+ Kc7 41. Qa7+ Kc8 42. Qa6+ Kd7 43. Qa7+ Kc8 $11) (36... Qg1+ $17 37. Kh3 Qa7) 37. Qb8+ {[%emt 0:00:05]} Ke7 {[%emt 0:00:01][%cal Oa4a3] ...a3! would now be deadly.} 38. f6+ {[%emt 0:00:46]} gxf6 {[%emt 0:00:02]} 39. gxf6+ {[%emt 0:00:00]} Kxf6 {[%emt 0:00:01][%cal Of6e7] Hoping for ...Ke7!} 40. Qh8+ $2 {[%emt 0:00:01][%mdl 8192]} (40. Qd8+ $11 {and White stays safe.} Kg7 41. f5) 40... Ke7 $19 {[%emt 0:00:02] ...Qg1+ is the strong threat.} 41. Qh4+ {[%emt 0:00:01] [#]} f6 $1 {[%emt 0:00:32]} 42. Qh7+ {[%emt 0:01:27]} Kd8 {[%emt 0:00:02]} 43. Bg4 {[%emt 0:00:05]} (43. Qf5 $19 Qg1+ 44. Kh3 Qf1+ 45. Kg3) 43... Qg1+ {[%emt 0:00:24]} ({Stronger than} 43... Nxd5 44. Qd7#) 44. Kf3 {[%emt 0:00:07]} Qd1+ {[%emt 0:00:08]} (44... Nxd5 45. Qd7#) 45. Kg3 {[%emt 0:00:02]} Qd3+ {[%emt 0:00:01] Black mates.} ({Not} 45... Qxd5 46. Qd7#) 46. Qxd3 {[%emt 0:00:01]} cxd3 {[%emt 0:00:01]} 47. Bd1 {[%emt 0:00:01]} a3 {[%emt 0:00:03]} 48. Bb3 {[%emt 0:00:01]} d2 {[%emt 0:00:01] Weighted Error Value: White=0.55/Black=0.08 (flawless) .  Loses game:     	White=1     	---        Mistake:       	White=3     	Black=3      Inaccurate:     	White=1     	Black=1      OK:         	White=8     	Black=12     Best:        	White=3     	Black=4      Strong:       	---       	Black=2      Brilliant:      	---       	Black=1} 0-1

[Event "CCT Chessable Masters D-III 2024"]
[Site "Online"]
[Date "2024.02.02"]
[Round "2"]
[White "Lysyj, Igor"]
[Black "Matlakov, Maxim"]
[Result "1-0"]
[ECO "E05"]
[WhiteElo "2589"]
[BlackElo "2662"]
[Annotator "TA"]
[PlyCount "89"]
[EventDate "2024.01.12"]
[EventType "k.o."]
[EventCountry "NET"]
[SourceTitle "playchess.com"]
[Source "ChessBase"]
[SourceQuality "1"]
[TimeControl "600+2"]

{[%evp 22,89,5,-8,8,21,6,17,21,31,12,-5,-7,-8,0,0,0,0,6,-35,-38,-33,-22,-33,-17,-22,-23,-78,-29,-43,-49,-56,-59,-99,-63,-62,0,0,0,0,0,-14,-16,-70,-20,-18,-12,-24,-3,-86,-74,-106,-102,-112,-103,-144,0,0,0,0,0,0,12,0,0,0,0,0,954,910]} 1. d4 {[%emt 0:00:03]} Nf6 {[%emt 0:00:04]} 2. c4 {[%emt 0:00:01]} e6 {[%emt 0:00:01]} 3. Nf3 {[%emt 0:00:22]} d5 {[%emt 0:00:01]} 4. g3 {[%emt 0:00:01]} Be7 {[%emt 0:00:01]} 5. Bg2 {[%emt 0:00:01]} O-O {[%emt 0:00:01]} 6. O-O {[%emt 0:00:01]} dxc4 {[%emt 0:00:01]} 7. Qa4 {[%emt 0:00:00]} a6 {[%emt 0:00:05]} 8. Qxc4 {[%emt 0:00:01]} b5 {[%emt 0:00:01]} 9. Qc2 {[%emt 0:00:03]} Bb7 {[%emt 0:00:02]} 10. Bf4 {[%emt 0:00:02]} Nc6 {[%emt 0:00:05]} 11. Nc3 {[%emt 0:00:05]} Nb4 {[%emt 0:00:05]} 12. Qc1 {[%emt 0:00:02]} c5 {[%emt 0:00:25]} 13. dxc5 {[%emt 0:00:13]} Bxc5 {[%emt 0:00:14]} 14. a3 {[%emt 0:00:03]} Nbd5 {[%emt 0:02:22] The position is equal.} 15. Nxd5 {[%emt 0:00:29]} Qxd5 {[%emt 0:00:02]} 16. Ne1 {[%emt 0:01:15]} Ne4 {[%emt 0:00:04]} 17. Be3 {[%emt 0:00:09]} (17. Bxe4 $2 Qxe4 18. Nf3 Qxe2 $19) 17... Rac8 {[%emt 0:00:51]} 18. Bxc5 {[%emt 0:00:07]} (18. Bxe4 $2 Qxe4 19. Nf3 Be7 $19 (19... Bxa3 $2 20. Qb1 $19)) 18... Qxc5 {[%emt 0:00:11]} 19. Nd3 {[%emt 0:00:08]} (19. Bxe4 {simplifies} Qxc1 20. Rxc1 Bxe4 21. Ng2) 19... Qb6 {[%emt 0:00:43]} 20. Qe3 {[%emt 0:00:32]} (20. Qf4 $5) 20... Qxe3 {[%emt 0:00:16]} 21. fxe3 {[%emt 0:00:03]} Rc2 {[%emt 0:00:18]} 22. Rfe1 {[%emt 0:01:40]} Rfc8 {[%emt 0:00:13]} 23. a4 {[%emt 0:00:18]} Bd5 {[%emt 0:01:13]} 24. a5 {[%emt 0:00:13]} (24. axb5 $11 axb5 25. Ra5) 24... Nc5 {[%emt 0:01:02]} (24... Kf8 $17) 25. Nb4 {[%emt 0:00:25]} Rxb2 {[%emt 0:00:07]} 26. Nxd5 {[%emt 0:00:03]} exd5 {[%emt 0:00:01]} 27. Rac1 {[%emt 0:00:00][%cal Oe1d1]} Kf8 {[%emt 0:00:35]} 28. Red1 {[%emt 0:02:31]} Rc7 {[%emt 0:00:03]} (28... Rxe2 29. Rxd5 Rxe3 30. Rcxc5 (30. Rdxc5 Re1+ 31. Rxe1 Rxc5 $18) 30... Rxc5 31. Rxc5 $18) (28... Rb4 $1 $15 29. Bxd5 Ra4) 29. Rxd5 $11 {[%emt 0:00:43]} Ne6 {[%emt 0:00:01]} 30. Rxc7 {[%emt 0:00:18]} Nxc7 {[%emt 0:00:00][%mdl 4096] Endgame. KRB-KRN} 31. Rd7 {[%emt 0:00:04]} Rc2 {[%emt 0:00:07][%cal Of8e8]} 32. Be4 {[%emt 0:00:02]} (32. Kf2 $11) 32... Rc1+ {[%emt 0:00:06]} ({Black should play} 32... Rc4 $1 $15 33. Bd3 Rc1+ 34. Kg2 Ke8) 33. Kf2 {[%emt 0:00:02]} Rc5 {[%emt 0:00:25]} 34. h4 {[%emt 0:00:07]} b4 {[%emt 0:00:05]} 35. g4 {[%emt 0:00:02]} (35. Bd3 $11 {remains equal.}) 35... b3 $17 {[%emt 0:00:18]} (35... Ke8 36. Rd4 $11) 36. Rd8+ {[%emt 0:00:06]} Ke7 {[%emt 0:00:02]} 37. Rb8 {[%emt 0:00:01]} Nb5 {[%emt 0:00:10]} (37... Rxa5 38. Rxb3 h5 39. g5 $16) 38. Rb7+ {[%emt 0:00:06] [#]} Kd6 {[%emt 0:00:11]} ({Better is} 38... Rc7 $1 $17 {[%cal Rc7b7] aiming for ...Rxb7.} 39. Rb6 (39. Rxc7+ $2 Nxc7 40. g5 Nb5 $19) 39... b2 40. Rxa6 Nc3) 39. Rb6+ $11 {[%emt 0:00:02]} Ke5 {[%emt 0:00:05]} 40. Bd3 {[%emt 0:00:03]} b2 {[%emt 0:00:02]} 41. Rxa6 {[%emt 0:00:06][%cal Oa6b6]} Nc3 {[%emt 0:00:02]} 42. Ra7 {[%emt 0:00:08]} (42. Rb6 Rxa5 43. Rb3 Nd1+ 44. Ke1 Nxe3 $11 (44... Ra1 45. Kd2 $11)) 42... Rd5 {[%emt 0:00:08][%cal Od5d3] [#] And now ...Rxd3! would win.} ({Of course not} 42... b1=B 43. Rxf7 Bxd3 44. exd3 $16) 43. Rb7 {[%emt 0:00:07]} Rxa5 {[%emt 0:00:02]} 44. Rxf7 {[%emt 0:00:05] Rf5+ would now be deadly.} h6 $2 {[%emt 0:00:35][%mdl 8192]} (44... b1=R $2 {loses.} 45. Rf5+ Ke6 46. Rxa5 $18) (44... g6 $11 45. Re7+ Kd5) 45. Rf5+ {[%emt 0:00:03] Weighted Error Value: White=0.16 (very precise) /Black=0.19 (very precise) .  Loses game:     	---       	Black=1      Mistake:       	White=3     	Black=4      Inaccurate:     	White=4     	Black=1      OK:         	White=12    	Black=11     Best:        	White=7     	Black=3} ({Worse is} 45. Rxg7 b1=Q 46. Bxb1 Nxb1 $11) 1-0

[Event "CCT Chessable Masters D-III 2024"]
[Site "Online"]
[Date "2024.02.02"]
[Round "2"]
[White "stSecond"]
[Black "Santos Latasa, Jaime"]
[Result "0-1"]
[ECO "E18"]
[WhiteElo "2570"]
[BlackElo "2615"]
[Annotator "ChessBase"]
[PlyCount "62"]
[EventDate "2024.01.12"]
[EventType "k.o."]
[EventCountry "NET"]
[SourceTitle "playchess.com"]
[Source "ChessBase"]
[SourceQuality "1"]
[TimeControl "600+2"]

1. d4 {[%emt 0:00:03]} Nf6 {[%emt 0:00:04]} 2. c4 {[%emt 0:00:01]} e6 {[%emt 0:00:01]} 3. Nf3 {[%emt 0:00:00]} d5 {[%emt 0:00:01]} 4. g3 {[%emt 0:00:01]} Bb4+ {[%emt 0:00:03]} 5. Bd2 {[%emt 0:00:01]} Be7 {[%emt 0:00:01]} 6. Bg2 {[%emt 0:00:00]} c6 {[%emt 0:00:01]} 7. O-O {[%emt 0:00:01]} Nbd7 {[%emt 0:00:00]} 8. Bf4 {[%emt 0:00:04]} b6 {[%emt 0:00:05]} 9. Nc3 {[%emt 0:00:03]} Bb7 {[%emt 0:00:02]} 10. Rc1 {[%emt 0:00:01]} O-O {[%emt 0:00:03]} 11. cxd5 {[%emt 0:00:02]} exd5 {[%emt 0:00:07]} 12. Ne5 {[%emt 0:00:02]} Re8 {[%emt 0:00:02]} 13. e3 {[%emt 0:00:06]} Nf8 {[%emt 0:00:09]} 14. h4 {[%emt 0:00:09]} Ne6 {[%emt 0:00:04]} 15. Qa4 {[%emt 0:00:02]} b5 {[%emt 0:00:13]} 16. Qb3 {[%emt 0:00:10]} a5 {[%emt 0:00:03]} 17. Ne2 {[%emt 0:00:14]} Qb6 {[%emt 0:00:10]} 18. Bh3 {[%emt 0:00:03]} Bf8 {[%emt 0:00:09]} 19. Qc2 {[%emt 0:00:07]} b4 {[%emt 0:00:17]} 20. Qf5 {[%emt 0:00:26]} c5 {[%emt 0:00:16]} 21. dxc5 {[%emt 0:00:14]} Nxc5 {[%emt 0:00:06]} 22. Qc2 {[%emt 0:00:15]} Ne6 {[%emt 0:00:14]} 23. Rfd1 {[%emt 0:00:48]} Rac8 {[%emt 0:00:12]} 24. Qa4 {[%emt 0:00:10]} Nc5 {[%emt 0:00:14]} 25. Qc2 {[%emt 0:00:18]} Ne6 {[%emt 0:00:03]} 26. Qf5 {[%emt 0:00:24]} Rxc1 {[%emt 0:00:36]} 27. Rxc1 {[%emt 0:00:04]} Bc8 {[%emt 0:00:34]} 28. Rc6 {[%emt 0:00:37]} Qb7 {[%emt 0:00:02]} 29. Kh2 {[%emt 0:03:44]} Nxf4 {[%emt 0:01:05]} 30. Rxc8 {[%emt 0:00:03]} Qxc8 {[%emt 0:00:40]} 31. Qxf4 {[%emt 0:00:47]} Qc7 {[%emt 0:00:16]} 0-1

[Event "CCT Chessable Masters D-III 2024"]
[Site "Online"]
[Date "2024.02.02"]
[Round "2"]
[White "youngKID"]
[Black "ViIIagra"]
[Result "1-0"]
[ECO "B17"]
[WhiteElo "2570"]
[BlackElo "2612"]
[Annotator "ChessBase"]
[PlyCount "93"]
[EventDate "2024.01.12"]
[EventType "k.o."]
[EventCountry "NET"]
[SourceTitle "playchess.com"]
[Source "ChessBase"]
[SourceQuality "1"]
[TimeControl "600+2"]

1. e4 {[%emt 0:00:03]} c6 {[%emt 0:00:04]} 2. Nc3 {[%emt 0:00:08]} d5 {[%emt 0:00:01]} 3. d4 {[%emt 0:00:03]} dxe4 {[%emt 0:00:04]} 4. Nxe4 {[%emt 0:00:01]} Nd7 {[%emt 0:00:01]} 5. Nf3 {[%emt 0:00:10]} Ngf6 {[%emt 0:00:06]} 6. Nxf6+ {[%emt 0:00:48]} Nxf6 {[%emt 0:00:00]} 7. c3 {[%emt 0:00:04]} Bg4 {[%emt 0:00:06]} 8. Be2 {[%emt 0:00:01]} e6 {[%emt 0:00:02]} 9. O-O {[%emt 0:00:02]} Bd6 {[%emt 0:00:04]} 10. Ne5 {[%emt 0:00:18]} Bxe2 {[%emt 0:01:32]} 11. Qxe2 {[%emt 0:00:00]} Nd7 {[%emt 0:00:13]} 12. Nxd7 {[%emt 0:01:08]} Qxd7 {[%emt 0:00:10]} 13. c4 {[%emt 0:00:05]} O-O {[%emt 0:00:18]} 14. Be3 {[%emt 0:00:03]} Qc7 {[%emt 0:01:12]} 15. g3 {[%emt 0:00:03]} Qa5 {[%emt 0:00:29]} 16. Rfd1 {[%emt 0:00:23]} Qf5 {[%emt 0:00:04]} 17. d5 {[%emt 0:00:22]} exd5 {[%emt 0:00:15]} 18. cxd5 {[%emt 0:00:00]} c5 {[%emt 0:00:01]} 19. Rac1 {[%emt 0:00:30]} b6 {[%emt 0:00:04]} 20. a4 {[%emt 0:00:07]} Rfe8 {[%emt 0:00:11]} 21. Rc4 {[%emt 0:01:39]} h5 {[%emt 0:00:21]} 22. Kg2 {[%emt 0:00:56]} Re4 {[%emt 0:01:32]} 23. Qd3 {[%emt 0:00:59]} Rae8 {[%emt 0:00:06]} 24. Bf4 {[%emt 0:00:30]} Rxf4 {[%emt 0:01:25]} 25. gxf4 {[%emt 0:00:01]} Qg4+ {[%emt 0:00:07]} 26. Kh1 {[%emt 0:00:56]} Bxf4 {[%emt 0:00:17]} 27. d6 {[%emt 0:00:37]} g6 {[%emt 0:01:28]} 28. d7 {[%emt 0:00:32]} Rd8 {[%emt 0:00:02]} 29. h3 {[%emt 0:00:02]} Qg5 {[%emt 0:00:27]} 30. Re4 {[%emt 0:00:02]} Kg7 {[%emt 0:00:11]} 31. Qc3+ {[%emt 0:00:11]} f6 {[%emt 0:00:05]} 32. Re8 {[%emt 0:00:04]} Bc7 {[%emt 0:00:02]} 33. Qc4 {[%emt 0:00:09]} Qf5 {[%emt 0:00:03]} 34. Qg8+ {[%emt 0:00:07]} Kh6 {[%emt 0:00:01]} 35. Qb3 {[%emt 0:00:05]} Rxd7 {[%emt 0:00:02]} 36. Rxd7 {[%emt 0:00:03]} Qxd7 {[%emt 0:00:00]} 37. Qe3+ {[%emt 0:00:00]} g5 {[%emt 0:00:01]} 38. Re7 {[%emt 0:00:02]} Qd6 {[%emt 0:00:02]} 39. Kg2 {[%emt 0:00:02]} Qd5+ {[%emt 0:00:02]} 40. Kg1 {[%emt 0:00:02]} Be5 {[%emt 0:00:00]} 41. Qe2 {[%emt 0:00:03]} a5 {[%emt 0:00:03]} 42. Re8 {[%emt 0:00:02]} Qd7 {[%emt 0:00:04]} 43. Rh8+ {[%emt 0:00:02]} Kg7 {[%emt 0:00:00]} 44. Qxh5 {[%emt 0:00:02]} Qf5 {[%emt 0:00:01]} 45. Qh6+ {[%emt 0:00:02]} Kf7 {[%emt 0:00:00]} 46. Qf8+ {[%emt 0:00:00]} Ke6 {[%emt 0:00:02]} 47. Qc8+ {[%emt 0:00:01]} 1-0

[Event "CCT Chessable Masters D-III 2024"]
[Site "Online"]
[Date "2024.02.02"]
[Round "2"]
[White "kpio91"]
[Black "Sarana, Alexey"]
[Result "0-1"]
[ECO "B22"]
[WhiteElo "2445"]
[BlackElo "2695"]
[Annotator "NA"]
[PlyCount "90"]
[EventDate "2024.01.12"]
[EventType "k.o."]
[EventCountry "NET"]
[SourceTitle "playchess.com"]
[Source "ChessBase"]
[SourceQuality "1"]
[TimeControl "600+2"]

1. e4 {[%emt 0:00:04]} c5 {[%emt 0:00:04]} 2. c3 {[%emt 0:00:01]} d5 {[%emt 0:00:03]} 3. exd5 {[%emt 0:00:03]} Qxd5 {[%emt 0:00:00]} 4. d4 {[%emt 0:00:02]} Nf6 {[%emt 0:00:01]} 5. Nf3 {[%emt 0:00:01]} e6 {[%emt 0:00:01]} 6. Na3 {[%emt 0:00:03]} Nc6 {[%emt 0:00:01]} 7. Be3 {[%emt 0:00:51]} a6 {[%emt 0:00:02]} 8. Nc4 {[%emt 0:00:18]} cxd4 {[%emt 0:00:23]} 9. Nxd4 {[%emt 0:00:12]} Bc5 {[%emt 0:00:01]} 10. Nxc6 {[%emt 0:00:34]} Qxc6 {[%emt 0:00:04]} 11. Ne5 {[%emt 0:00:52]} Qe4 {[%emt 0:00:50]} 12. Nc4 {[%emt 0:00:09]} O-O {[%emt 0:00:18]} 13. Qd3 {[%emt 0:00:13]} Qc6 {[%emt 0:00:22]} 14. Bxc5 {[%emt 0:00:42]} Qxc5 {[%emt 0:00:01]} 15. Qd6 {[%emt 0:00:12]} Qxd6 {[%emt 0:00:36]} 16. Nxd6 {[%emt 0:00:03]} Rd8 {[%emt 0:00:01]} 17. Rd1 {[%emt 0:00:20]} Kf8 {[%emt 0:00:16]} 18. Be2 {[%emt 0:00:50]} Ke7 {[%emt 0:00:02]} 19. Nxc8+ {[%emt 0:00:03]} Raxc8 {[%emt 0:00:12]} 20. Bf3 {[%emt 0:00:14]} b5 {[%emt 0:00:21]} 21. Ke2 {[%emt 0:00:07]} Nd7 {[%emt 0:00:14]} 22. Be4 {[%emt 0:00:14]} Nb6 {[%emt 0:01:21]} 23. Rxd8 {[%emt 0:00:07]} Rxd8 {[%emt 0:00:01]} 24. b3 {[%emt 0:00:16]} Nd7 {[%emt 0:00:20]} 25. Rc1 {[%emt 0:00:29]} Rc8 {[%emt 0:00:04]} 26. Kd2 {[%emt 0:00:34]} f5 {[%emt 0:00:15]} 27. Bf3 {[%emt 0:00:07]} g5 {[%emt 0:00:10]} 28. Be2 {[%emt 0:00:12]} e5 {[%emt 0:00:21]} 29. f3 {[%emt 0:00:34]} Nb6 {[%emt 0:00:30]} 30. Bd3 {[%emt 0:00:14]} Kf6 {[%emt 0:00:01]} 31. c4 {[%emt 0:00:13]} bxc4 {[%emt 0:00:23]} 32. bxc4 {[%emt 0:00:02]} Na4 {[%emt 0:00:07]} 33. Rb1 {[%emt 0:00:08]} Rd8 {[%emt 0:00:26]} 34. Kc2 {[%emt 0:00:03]} Rd6 {[%emt 0:00:31]} 35. Rb8 {[%emt 0:00:55]} Nc5 {[%emt 0:00:04]} 36. Be2 {[%emt 0:00:01]} e4 {[%emt 0:00:04]} 37. fxe4 {[%emt 0:00:01]} Nxe4 {[%emt 0:00:06]} 38. Bd3 {[%emt 0:00:10]} Nc5 {[%emt 0:00:20]} 39. Be2 {[%emt 0:00:05]} Ke5 {[%emt 0:00:01]} 40. Bf3 {[%emt 0:00:20]} Ne4 {[%emt 0:00:25]} 41. Re8+ {[%emt 0:00:20]} Kd4 {[%emt 0:00:05]} 42. Rf8 {[%emt 0:00:18]} g4 {[%emt 0:00:02]} 43. Be2 {[%emt 0:00:03]} Ke3 {[%emt 0:00:04]} 44. Bf1 {[%emt 0:00:02]} Rd2+ {[%emt 0:00:03]} 45. Kb3 {[%emt 0:00:02]} Rf2 {[%emt 0:00:02]} 0-1

[Event "CCT Chessable Masters D-III 2024"]
[Site "Online"]
[Date "2024.02.03"]
[Round "3"]
[White "Sarana, Alexey"]
[Black "Matlakov, Maxim"]
[Result "1/2-1/2"]
[ECO "E06"]
[WhiteElo "2695"]
[BlackElo "2662"]
[Annotator "TA"]
[PlyCount "64"]
[EventDate "2024.01.12"]
[EventType "k.o."]
[EventCountry "NET"]
[SourceTitle "playchess.com"]
[Source "ChessBase"]
[SourceQuality "1"]
[TimeControl "600+2"]

{[%evp 13,64,0,10,0,10,14,14,12,0,22,35,23,34,0,0,0,0,0,0,0,5,0,3,0,0,0,0,0,0,0,0,0,0,0,0,-5,-8,-18,-10,-10,-10,-8,-12,-10,0,0,0,0,0,0,0,0,0]} 1. d4 {[%emt 0:00:02]} Nf6 {[%emt 0:00:04]} 2. c4 {[%emt 0:00:01]} e6 {[%emt 0:00:01]} 3. Nf3 {[%emt 0:00:02]} d5 {[%emt 0:00:02]} 4. Nc3 {[%emt 0:00:00]} Be7 {[%emt 0:00:02]} 5. g3 {[%emt 0:00:02]} O-O {[%emt 0:00:04]} 6. Bg2 {[%emt 0:00:01]} dxc4 {[%emt 0:00:04]} 7. Ne5 {[%emt 0:00:09]} Nc6 {[%emt 0:00:01]} 8. Bxc6 {[%emt 0:00:04]} ({Much weaker is} 8. Nxc4 Qxd4 (8... Nxd4 9. Bf4 $11) 9. Qb3 Qc5 $17) 8... bxc6 {[%emt 0:00:01]} 9. Nxc6 {[%emt 0:00:00] A dynamic duo of knights.} Qe8 {[%emt 0:00:01]} 10. Nxe7+ {[%emt 0:00:00]} Qxe7 {[%emt 0:00:01]} 11. Qa4 {[%emt 0:00:01]} Nd5 {[%emt 0:00:09]} 12. Qxc4 {[%emt 0:00:04]} a5 {[%emt 0:00:03]} 13. f3 {[%emt 0:00:55]} Ba6 {[%emt 0:00:10] The position is equal.} 14. Qc5 {[%emt 0:00:02]} Qxc5 {[%emt 0:00:49]} 15. dxc5 {[%emt 0:00:01]} Nxc3 {[%emt 0:00:01]} 16. bxc3 {[%emt 0:00:00]} e5 {[%emt 0:00:07]} 17. Kf2 {[%emt 0:00:16]} Rfd8 {[%emt 0:00:07]} 18. Rb1 {[%emt 0:00:06]} f6 {[%emt 0:00:11]} 19. Be3 {[%emt 0:00:07]} Kf7 {[%emt 0:00:04]} 20. Rhc1 {[%emt 0:00:25]} Bc4 {[%emt 0:00:55]} 21. Rb7 {[%emt 0:00:04]} Rdc8 {[%emt 0:00:02]} 22. Rc2 {[%emt 0:01:03]} Ke6 {[%emt 0:00:16]} 23. a3 {[%emt 0:00:41]} Kd5 {[%emt 0:00:12]} 24. h4 {[%emt 0:00:29]} Kc6 {[%emt 0:00:07]} 25. Rb1 {[%emt 0:00:01]} Rab8 {[%emt 0:00:42]} 26. Rcb2 {[%emt 0:00:01]} Rxb2 {[%emt 0:00:06]} 27. Rxb2 $11 {[%emt 0:00:00][%mdl 4096] Endgame. KRB-KRB} Rd8 {[%emt 0:00:03]} 28. Ke1 {[%emt 0:00:01] Dodges Rd1+} h5 {[%emt 0:00:05]} 29. Rb1 {[%emt 0:00:05]} Ba2 {[%emt 0:00:14]} 30. Rb2 {[%emt 0:00:06]} Bc4 {[%emt 0:00:02]} 31. Rb1 {[%emt 0:00:06]} Ba2 {[%emt 0:00:01]} 32. Rb2 {[%emt 0:00:00]} Bc4 {[%emt 0:00:02] Not much happened in this game.   Weighted Error Value: White=0.04 (flawless) /Black=0.02 (flawless) .  Inaccurate:     	White=1     	---        OK:         	White=11    	Black=10     Best:        	---       	Black=1} 1/2-1/2